bitfinex-derivatives/quotes_ETHF0:USTF0_20250624
["timestamp","ask_amount","ask_price","bid_price","bid_amount"]
[1750788166765,6.994,2461.9,2461.8,4.13729]
[1750788166961,33.58995,2461.9,2461.8,3.3253]
[1750788167369,33.58995,2461.9,2461.8,4.13729]
[1750788167662,32.778,2461.9,2461.8,4.13729]
[1750788168062,4.01972,2462.0,2461.9,0.81195]
[1750788168266,28.9918,2462.0,2461.9,7.69445]
[1750788169171,3.2078,2462.0,2461.9,7.69445]
[1750788169377,28.9898,2462.0,2461.9,7.69445]
[1750788169676,29.80172,2462.0,2461.9,7.69445]
[1750788170578,29.80172,2462.0,2461.9,6.8825]
[1750788173276,9.32746884,2462.2,2462.0,0.81191]
[1750788173480,0.8119,2462.1,2462.0,7.39151]
[1750788173772,25.779,2462.1,2462.0,7.39151]
[1750788174175,26.59089,2462.1,2462.0,7.39151]
[1750788174375,25.779,2462.1,2462.0,7.39151]
[1750788174575,3.2078,2462.2,2462.1,0.81189]
[1750788174774,28.9868,2462.2,2462.1,6.09189]
[1750788175178,29.79865,2462.2,2462.1,6.09189]
[1750788175972,28.9858,2462.2,2462.1,6.09189]
[1750788176174,0.8118,2462.4,2462.3,0.8118]
[1750788176376,33.5828,2462.4,2462.3,6.33]
[1750788176770,33.5828,2462.4,2462.3,8.52962]
[1750788176771,32.77,2462.4,2462.3,8.52962]
[1750788176974,46.799,2462.8,2462.3,7.7178]
[1750788177172,0.81173,2462.6,2462.5,0.81173]
[1750788177377,0.81173,2462.6,2462.5,8.30953]
[1750788177984,0.81173,2462.6,2462.5,7.4978]
[1750788178179,4.01953,2462.6,2462.5,6.11]
[1750788179386,4.01953,2462.6,2462.5,6.92175]
[1750788179882,0.81173,2462.6,2462.5,6.11]
[1750788180081,0.81173,2462.6,2462.5,7.5082]
[1750788180280,0.81173,2462.6,2462.5,8.31995]
[1750788180681,26.58573,2462.6,2462.5,7.5082]
[1750788180881,0.81162,2463.0,2462.9,0.81161]
[1750788181075,26.58359,2463.0,2462.9,5.5]
[1750788181677,26.58359,2463.0,2462.9,6.31162]
[1750788182779,26.58359,2463.0,2462.9,5.5]
[1750788185684,32.70325884,2463.0,2462.9,5.5]
[1750788186080,39.07885884,2463.0,2462.9,5.5]
[1750788186381,40.21142131,2463.0,2462.9,5.5]
[1750788186588,40.21142131,2463.0,2462.3,5.07599]
[1750788186589,2.02927,2462.7,2462.3,4.2642]
[1750788186788,4.01959,2462.4,2462.3,9.7442]
[1750788186986,1.5496,2462.6,2462.3,9.7442]
[1750788187186,25.764,2462.5,2462.4,0.81179]
[1750788187489,25.764,2462.5,2462.4,9.03089]
[1750788188891,0.81171,2462.7,2462.6,0.81172]
[1750788189185,29.78243,2462.9,2462.8,0.81166]
[1750788189483,29.78243,2462.9,2462.8,6.51166]
[1750788189484,25.763,2462.9,2462.8,6.51166]
[1750788189889,26.57462,2462.9,2462.8,6.51166]
[1750788190290,0.81161,2463.0,2462.9,0.81162]
[1750788190491,26.57361,2463.0,2462.9,6.92162]
[1750788191194,0.81161,2463.0,2462.9,6.92162]
[1750788191490,26.57261,2463.0,2462.9,6.92162]
[1750788192985,12.21262,2463.2,2462.9,6.92162]
[1750788192986,3.2078,2463.2,2463.1,0.81156]
[1750788193191,3.2078,2463.2,2463.1,7.25156]
[1750788193887,0.81143,2463.5,2463.4,0.81142]
[1750788194085,26.56943,2463.5,2463.4,7.29142]
[1750788194386,25.758,2463.5,2463.4,7.29142]
[1750788194591,26.56942,2463.5,2463.4,6.48]
[1750788194792,26.56942,2463.5,2463.4,7.29146]
[1750788195087,26.56942,2463.5,2463.4,6.48]
[1750788195396,29.01946721,2463.5,2463.4,6.48]
[1750788196889,27.70456721,2463.5,2463.4,6.48]
[1750788197085,4.78232,2463.6,2463.4,7.29143]
[1750788197290,6.975,2463.5,2463.4,7.29143]
[1750788197482,32.728,2463.5,2463.4,7.29143]
[1750788197692,33.53942,2463.5,2463.4,6.48]
[1750788197895,32.728,2463.5,2463.4,7.29146]
[1750788198395,33.53942,2463.5,2463.4,6.48]
[1750788198594,33.53942,2463.5,2463.4,7.29146]
[1750788198791,33.53942,2463.5,2463.4,6.48]
[1750788200096,34.67527622,2463.5,2463.4,6.48]
[1750788200597,2.01102772,2463.5,2463.4,6.48]
[1750788200796,27.76002772,2463.5,2463.4,6.48]
[1750788200996,27.76002772,2463.5,2463.4,7.29146]
[1750788201197,25.8127515,2463.5,2463.4,7.29146]
[1750788201398,26.94947381,2463.5,2463.4,7.29146]
[1750788201895,25.8107515,2463.5,2463.4,7.29146]
[1750788203206,3.2078,2463.9,2463.8,0.81133]
[1750788203390,25.746,2464.1,2463.9,0.81127]
[1750788203592,0.81126,2464.0,2463.9,8.09017]
[1750788203993,0.81124,2464.1,2464.0,0.81124]
[1750788204196,0.81124,2464.1,2464.0,6.2]
[1750788204397,0.81124,2464.1,2464.0,7.01126]
[1750788204599,0.81124,2464.1,2464.0,7.81186]
[1750788206299,0.81124,2464.1,2464.0,6.2]
[1750788206500,1.94752191,2464.1,2464.0,6.2]
[1750788206700,1.94752191,2464.1,2464.0,6.1362485]
[1750788206701,9.08302191,2464.1,2464.0,6.1362485]
[1750788206900,9.08302191,2464.1,2464.0,5.83189625]
[1750788207209,9.08302191,2464.1,2464.0,2.93333665]
[1750788207404,9.08302191,2464.1,2463.9,2.3071]
[1750788207405,0.81126,2464.0,2463.9,2.3071]
[1750788207609,35.14571075,2464.0,2463.9,2.3071]
[1750788207806,42.55869458,2464.0,2463.9,2.3071]
[1750788208109,0.81149,2463.3,2463.2,0.6388]
[1750788208314,26.54949,2463.3,2463.2,6.7588]
[1750788208799,26.54949,2463.3,2463.2,9.6006]
[1750788209202,27.68613548,2463.3,2463.2,9.6006]
[1750788210706,33.80580432,2463.3,2463.2,3.4806]
[1750788210904,35.13390432,2463.3,2463.2,3.4906]
[1750788211412,35.13390432,2463.3,2463.2,3.4806]
[1750788211605,9.39590432,2463.3,2463.2,3.4806]
[1750788211802,42.10490432,2463.3,2463.2,3.4806]
[1750788212003,42.10490432,2463.3,2463.2,0.55181628]
[1750788212004,47.10490432,2463.3,2463.2,0.55181628]
[1750788212301,0.81156,2463.1,2463.0,3.01390895]
[1750788212505,29.75436,2463.1,2463.0,2.19100895]
[1750788212704,35.89100548,2463.1,2463.0,8.95e-06]
[1750788212912,0.81182,2462.3,2462.2,2.1665]
[1750788213112,0.81182,2462.3,2462.2,7.7765]
[1750788213509,4.01951,2462.7,2462.2,9.80613]
[1750788213707,0.81171,2462.7,2462.6,0.81172]
[1750788213908,26.54871,2462.7,2462.6,6.16172]
[1750788214214,0.81169,2462.7,2462.6,6.16172]
[1750788215114,0.81169,2462.7,2462.6,6.16171]
[1750788216511,0.81168,2462.8,2462.7,0.81169]
[1750788216708,0.81168,2462.8,2462.7,8.15109]
[1750788216910,0.81168,2462.8,2462.7,7.3394]
[1750788217307,0.81168,2462.8,2462.5,1.8273]
[1750788217612,0.81168,2462.8,2461.9,6.11966884]
[1750788217613,3.2078,2461.1,2458.8,10.52209567]
[1750788217813,2.03152,2460.0,2459.4,1.02586]
[1750788218018,0.81291,2459.0,2458.9,3.17843963]
[1750788218316,39.12071,2459.0,2458.9,4.24843963]
[1750788218711,39.12071,2459.0,2458.9,0.23176]
[1750788218917,40.31374364,2459.0,2458.9,0.23176]
[1750788219215,40.35009,2459.0,2458.4,0.01]
[1750788219409,0.81301,2458.7,2458.6,1.02586]
[1750788219713,4.02081,2458.7,2458.5,3.17843963]
[1750788220009,3.2078,2459.7,2458.9,0.81294]
[1750788220205,3.2078,2459.7,2459.6,1.02586]
[1750788220206,0.84204037,2459.7,2459.6,1.02586]
[1750788220404,0.81274,2459.6,2459.0,3.2078]
[1750788220614,0.81274,2459.6,2459.0,9.4478]
[1750788220809,0.02936037,2459.7,2459.5,1.02586]
[1750788221005,0.81277,2459.5,2459.0,4.4078]
[1750788221205,7.833,2459.4,2459.0,8.9878]
[1750788221414,7.833,2459.4,2459.1,0.0476]
[1750788221716,7.833,2459.4,2459.3,1.02586]
[1750788222008,7.833,2459.4,2459.3,6.92586]
[1750788222409,8.64578,2459.4,2459.3,6.92586]
[1750788222716,7.833,2459.4,2459.3,6.92586]
[1750788224214,7.833,2459.4,2459.3,8.23416]
[1750788224721,7.833,2459.4,2459.3,9.04697]
[1750788225012,7.27341,2458.4,2456.6,3.2078]
[1750788225209,6.66095137,2457.2,2456.6,5.91149]
[1750788225420,6.66095137,2457.2,2456.7,40.8]
[1750788225421,0.81364,2456.8,2456.7,40.8]
[1750788225713,7.47459137,2456.8,2456.7,1.45]
[1750788225907,6.66095137,2456.8,2456.7,1.45]
[1750788226306,6.66095137,2456.8,2456.7,2.449]
[1750788226307,7.47459137,2456.8,2456.7,2.449]
[1750788226712,16.18559137,2456.8,2456.7,2.449]
[1750788227317,16.18559137,2456.8,2456.7,2.2455321]
[1750788227915,16.18559137,2456.8,2456.7,0.999]
[1750788228214,22.52889137,2456.8,2456.7,0.999]
[1750788228420,21.71525137,2456.8,2455.7,0.814]
[1750788228620,4.02173,2456.0,2455.7,5.15]
[1750788228921,31.7368,2456.0,2455.7,5.964]
[1750788229119,6.66095137,2455.9,2455.7,5.15]
[1750788229421,0.81397,2455.8,2455.7,5.15]
[1750788229824,7.47490137,2455.9,2455.7,5.15]
[1750788230013,0.81397,2455.8,2455.7,5.15]
[1750788230212,0.81407,2455.6,2455.2,0.2]
[1750788230416,3.2078,2455.4,2455.3,0.81413]
[1750788230713,3.2078,2456.1,2455.3,10.0586]
[1750788230914,3.2078,2456.1,2456.0,0.8139]
[1750788231110,3.2078,2456.1,2456.0,7.3039]
[1750788231315,3.2078,2456.4,2456.3,0.81378]
[1750788231619,3.2078,2456.7,2456.6,0.8137]
[1750788231918,3.2078,2456.7,2456.6,6.3437]
[1750788232315,3.2078,2456.7,2456.6,5.53]
[1750788232515,3.2078,2456.7,2456.6,6.3437]
[1750788233821,3.2078,2456.7,2456.6,5.53]
[1750788234523,4.02147,2456.7,2456.6,5.53]
[1750788235423,10.68242137,2456.7,2456.6,5.53]
[1750788236532,12.02302137,2456.7,2456.6,5.53]
[1750788239020,0.81384,2456.2,2455.5,2.03514]
[1750788239226,3.2078,2456.0,2455.8,0.81395]
[1750788239415,3.2078,2456.0,2455.9,40.8]
[1750788239618,3.2078,2456.0,2455.9,46.02]
[1750788239819,4.0217,2456.0,2455.9,46.02]
[1750788240630,4.0217,2456.0,2455.9,5.22]
[1750788241021,31.5058,2456.0,2455.9,53.21544]
[1750788241327,29.1119,2456.0,2455.9,47.4015]
[1750788241625,3.2078,2456.1,2456.0,0.8139]
[1750788241826,31.4978,2456.1,2456.0,7.4854]
[1750788242227,32.31167,2456.1,2456.0,6.6715]
[1750788242628,32.31167,2456.1,2456.0,7.4854]
[1750788242930,31.4978,2456.1,2456.0,7.4854]
[1750788243430,3.2078,2456.1,2456.0,7.4854]
[1750788243727,31.4618,2456.1,2456.0,7.4854]
[1750788244233,32.27567,2456.1,2456.0,7.5491515]
[1750788245327,32.27567,2456.1,2456.0,7.4854]
[1750788245733,32.27567,2456.1,2456.0,5.29]
[1750788246233,32.27567,2456.1,2456.0,6.7205515]
[1750788246437,32.27567,2456.1,2456.0,7.5344515]
[1750788246620,4.02167,2456.1,2456.0,7.5344515]
[1750788246933,3.2078,2456.1,2456.0,7.5344515]
[1750788247423,28.98484,2456.2,2456.1,0.81387]
[1750788247623,30.2084185,2456.2,2456.1,7.52067]
[1750788247836,29.3945785,2456.2,2456.1,7.52067]
[1750788248226,3.2078,2456.4,2456.3,0.8138]
[1750788248423,32.56636426,2456.4,2456.3,7.1038]
[1750788248626,33.38013426,2456.4,2456.3,6.29]
[1750788249139,33.38013426,2456.4,2456.3,7.6899]
[1750788249633,33.38013426,2456.4,2456.3,6.29]
[1750788249833,35.7584288,2456.4,2456.3,6.29]
[1750788250039,37.0756288,2456.4,2456.3,4.39706461]
[1750788250329,34.69733426,2456.4,2456.3,4.39706461]
[1750788250526,35.77228962,2456.4,2456.3,4.39706461]
[1750788250929,35.77228962,2456.4,2456.3,2.59261461]
[1750788250930,38.38013426,2456.4,2456.3,2.59261461]
[1750788251130,41.63525426,2456.4,2455.1,3.9928]
[1750788251331,0.81417,2455.2,2455.1,8.1973]
[1750788251532,2.03873426,2455.2,2455.1,48.9973]
[1750788252128,2.03873426,2455.2,2455.1,5.99]
[1750788252335,3.61985542,2455.2,2455.1,5.99]
[1750788252635,2.03873426,2455.2,2455.1,46.79]
[1750788252834,4.43402542,2455.2,2455.1,46.79]
[1750788253034,30.09273426,2455.2,2455.1,46.79]
[1750788253231,30.09273426,2455.2,2455.1,48.2123]
[1750788253435,1.22456426,2455.2,2455.1,49.0265]
[1750788253631,1.22456426,2455.2,2455.1,54.0265]
[1750788253837,2.40223922,2455.5,2455.1,53.2123]
[1750788254038,2.40223922,2455.5,2455.4,0.8141]
[1750788254239,4.00779155,2455.5,2455.4,6.1841]
[1750788254443,3.19372155,2455.5,2455.4,11.1841]
[1750788255138,3.2078,2455.6,2455.5,0.81407]
[1750788255345,3.2078,2455.6,2455.5,7.89477]
[1750788255545,4.02183,2455.6,2455.5,7.89477]
[1750788255843,3.2078,2455.6,2455.5,7.89477]
[1750788256040,3.2078,2455.6,2455.5,7.06019439]
[1750788256241,3.2078,2455.6,2455.5,7.87426439]
[1750788257945,4.02889203,2456.0,2455.9,0.81394]
[1750788258144,4.02889203,2456.2,2456.1,0.81387]
[1750788258345,0.81382,2456.3,2456.2,0.81384]
[1750788258545,0.81382,2456.3,2456.2,6.75384]
[1750788258746,0.81382,2456.3,2456.2,47.55384]
[1750788258947,0.81382,2456.3,2456.2,46.74]
[1750788259948,0.81382,2456.3,2456.2,45.68168364]
[1750788260447,3.2078,2456.3,2455.6,3.43185]
[1750788260648,0.81392,2456.0,2455.9,0.81392]
[1750788260843,0.81392,2456.0,2455.9,47.13392]
[1750788261045,0.81392,2456.0,2455.9,46.32]
[1750788261953,2.03495,2455.8,2455.2,0.81414]
[1750788262157,6.66095137,2455.6,2455.2,5.87]
[1750788262352,0.81412,2455.4,2455.3,42.1968]
[1750788262553,28.67012,2455.4,2455.3,47.5968]
[1750788262742,28.67012,2455.4,2455.3,46.2]
[1750788263245,28.67012,2455.4,2455.3,5.4]
[1750788263758,31.87792,2455.4,2455.3,5.4]
[1750788264454,33.18922,2455.4,2455.3,5.4]
[1750788264657,33.18922,2455.4,2455.3,1.90790221]
[1750788265150,5.33322,2455.4,2455.3,1.90790221]
[1750788265354,40.24792,2455.4,2455.3,1.90790221]
[1750788265956,41.42106576,2455.4,2455.3,1.90790221]
[1750788266350,41.43006743,2455.4,2455.3,1.90790221]
[1750788266557,38.21326576,2455.4,2455.3,1.90790221]
[1750788266956,0.81423,2455.0,2454.9,42.1298]
[1750788267164,29.77537576,2455.0,2454.9,48.1698]
[1750788267456,28.96114576,2455.0,2454.9,48.98407]
[1750788267656,28.95114576,2455.0,2454.9,48.98407]
[1750788268757,1.17314576,2455.0,2454.9,53.98407]
[1750788269752,1.17314576,2455.0,2454.9,48.98407]
[1750788269753,1.98737576,2455.0,2454.9,48.98407]
[1750788269953,1.98737576,2455.0,2454.9,53.1698]
[1750788270758,1.17314576,2455.0,2454.9,53.98407]
[1750788271657,1.17314576,2455.0,2454.9,48.98407]
[1750788272058,1.98737576,2455.0,2454.9,48.98407]
[1750788272264,1.17314576,2455.0,2454.9,48.98407]
[1750788272761,1.98737576,2455.0,2454.9,48.98407]
[1750788273656,1.98737576,2455.0,2454.9,48.1698]
[1750788274159,36.30632713,2455.0,2454.9,6.04]
[1750788274351,36.30632713,2455.0,2454.9,5.73454272]
[1750788274551,37.60572713,2455.0,2454.9,5.73454272]
[1750788275051,36.30632713,2455.0,2454.9,5.73454272]
[1750788275252,37.60572713,2455.0,2454.9,4.75480272]
[1750788276660,37.60572713,2455.0,2454.9,4.81855422]
[1750788277657,37.92256811,2455.0,2454.9,4.81855422]
[1750788277857,37.60572713,2455.0,2454.9,4.81855422]
[1750788278162,37.60572713,2455.0,2454.9,0.0637515]
[1750788278163,40.01513419,2455.0,2454.9,0.0637515]
[1750788278354,37.60572713,2455.0,2454.9,0.0637515]
[1750788278553,42.60572713,2455.0,2454.9,0.0637515]
[1750788278755,45.01513419,2455.0,2454.9,1.5e-06]
[1750788279060,2.03605,2454.5,2454.2,40.8]
[1750788279261,0.81457,2454.0,2453.9,0.81458]
[1750788279568,28.42457,2454.0,2453.9,5.51]
[1750788279751,28.42457,2454.0,2453.9,47.1246]
[1750788280066,28.42457,2454.0,2453.9,5.51]
[1750788280364,36.51857,2454.0,2453.9,5.51]
[1750788280765,36.51857,2454.0,2453.9,6.3246]
[1750788280965,3.2078,2454.1,2454.0,0.81457]
[1750788281165,3.2078,2454.5,2454.0,5.45]
[1750788281350,3.2078,2454.5,2454.0,7.66275]
[1750788281351,27.598,2454.4,2454.0,7.66275]
[1750788281551,0.81453,2454.2,2454.0,7.66275]
[1750788281766,30.03603004,2454.4,2454.0,6.8482]
[1750788282062,0.81453,2454.1,2454.0,6.26457]
[1750788282266,27.99993004,2454.4,2454.0,5.45]
[1750788282458,0.81448,2454.3,2454.1,0.81452]
[1750788282654,1.21638004,2454.4,2454.2,0.8145]
[1750788282962,1.21636004,2454.4,2454.3,0.81447]
[1750788283262,28.78836004,2454.4,2454.3,6.12]
[1750788283965,35.44931141,2454.4,2454.3,6.12]
[1750788284159,36.84991141,2454.4,2454.3,6.12]
[1750788285056,41.84991141,2454.4,2454.3,6.12]
[1750788285250,36.84991141,2454.4,2454.3,6.12]
[1750788285455,41.03548141,2454.4,2452.2,5.55640563]
[1750788285656,3.2078,2452.6,2452.5,3.41788219]
[1750788285853,41.99703385,2452.6,2452.5,3.41788219]
[1750788286356,41.99703385,2452.6,2451.5,0.81538]
[1750788286357,0.8152,2452.1,2451.5,0.81538]
[1750788286557,3.2078,2452.0,2451.5,5.86]
[1750788286756,0.81528,2451.9,2451.6,0.81533]
[1750788286957,0.81533,2451.7,2451.6,6.46]
[1750788287271,12.54613,2451.7,2451.6,5.58663]
[1750788287760,12.54613,2451.7,2451.6,4.46233467]
[1750788287966,12.54613,2451.7,2451.6,3.61034467]
[1750788288260,47.50208137,2451.7,2451.6,3.61034467]
[1750788288663,14.86875137,2451.7,2450.1,3.2078]
[1750788288857,3.2078,2451.4,2450.7,3.2078]
[1750788289056,4.02312,2451.8,2451.0,3.2078]
[1750788289252,0.81534,2451.7,2451.1,1.57901]
[1750788289461,3.2078,2451.8,2451.1,6.9935]
[1750788289756,4.02311,2451.8,2451.4,0.81541]
[1750788289964,0.81534,2451.7,2451.4,46.84]
[1750788290161,0.81536,2451.6,2451.4,46.84]
[1750788290363,0.81535,2451.7,2451.4,46.84]
[1750788290560,3.2078,2451.8,2451.7,0.81533]
[1750788290766,3.2078,2451.8,2451.7,5.95]
[1750788291557,3.2078,2451.8,2451.7,6.76533]
[1750788292159,12.10240137,2452.3,2451.7,5.95]
[1750788292365,3.2078,2452.3,2452.2,0.81516]
[1750788292755,3.2078,2452.3,2452.2,6.83516]
[1750788294361,3.2078,2452.3,2452.2,6.02]
[1750788294760,4.02293,2452.3,2452.2,6.02]
[1750788295469,3.2078,2452.3,2452.2,11.83516]
[1750788295669,4.02293,2452.3,2452.2,11.83516]
[1750788295862,4.02293,2452.3,2452.2,6.83516]
[1750788296166,3.2078,2452.3,2452.2,6.83516]
[1750788296570,3.2078,2452.3,2452.2,6.02]
[1750788296571,4.02293,2452.3,2452.2,6.02]
[1750788297265,12.55293,2452.3,2452.2,6.02]
[1750788301572,4.02293,2452.3,2452.2,6.02]
[1750788301773,40.69093,2452.3,2452.2,6.02]
[1750788302767,3.2078,2452.3,2452.2,6.02]
[1750788302975,4.02271,2453.0,2452.8,0.81495]
[1750788303172,4.02271,2453.0,2452.8,6.33495]
[1750788303368,4.02272,2453.0,2452.8,6.33495]
[1750788303564,3.2078,2453.0,2452.9,0.81493]
[1750788303873,3.2078,2453.0,2452.9,7.99813]
[1750788304676,4.0227,2453.0,2452.9,7.99813]
[1750788305173,3.2078,2453.0,2452.9,7.99813]
[1750788305365,4.0227,2453.0,2452.9,46.56]
[1750788305670,4.0227,2453.0,2452.9,5.76]
[1750788306874,3.2078,2453.0,2452.9,6.57493]
[1750788307174,4.0227,2453.0,2452.9,6.57493]
[1750788308373,4.0227,2453.0,2452.9,5.76]
[1750788308674,4.0227,2453.0,2452.9,6.57493]
[1750788308879,4.0227,2453.0,2452.9,5.76]
[1750788309272,4.0227,2453.0,2452.9,7.1056]
[1750788309468,3.2078,2453.0,2452.9,7.92053]
[1750788309768,4.0227,2453.0,2452.9,7.92053]
[1750788309972,3.2078,2453.0,2452.9,7.92053]
[1750788310168,4.0227,2453.0,2452.9,7.1056]
[1750788310374,4.0227,2453.0,2452.9,7.92053]
[1750788311276,4.0227,2453.0,2452.9,7.1056]
[1750788311975,0.8149,2453.0,2452.9,10.3134]
[1750788312172,0.8149,2453.0,2452.9,5.76]
[1750788312373,7.47585137,2453.0,2452.9,5.76]
[1750788312570,13.60158098,2453.0,2452.9,2.5522]
[1750788312770,15.02318098,2453.0,2452.9,2.5522]
[1750788314682,0.81516,2452.2,2452.1,0.7939]
[1750788314873,0.81516,2452.2,2452.1,6.4139]
[1750788315067,0.81516,2452.2,2452.1,7.8277]
[1750788315271,0.81516,2452.2,2452.1,48.6277]
[1750788316378,7.47611137,2452.2,2452.1,5.62]
[1750788316774,9.92839721,2452.2,2452.1,5.62]
[1750788317174,1.94474584,2452.2,2452.1,5.62]
[1750788317478,1.12978055,2452.2,2452.1,0.01]
[1750788317681,0.8153,2451.8,2451.7,3.2078]
[1750788317883,0.8153,2451.8,2451.7,8.5778]
[1750788318073,0.8153,2451.8,2451.7,5.37]
[1750788318773,14.0333,2451.8,2451.7,3.20826]
[1750788319079,0.81553,2451.1,2451.0,3.2078]
[1750788319277,0.81553,2451.1,2451.0,51.7322]
[1750788319482,0.81553,2451.1,2451.0,50.4178]
[1750788319878,0.81553,2451.1,2451.0,56.23334]
[1750788320179,28.023,2451.5,2451.0,55.4178]
[1750788320380,0.81544,2451.4,2451.3,3.2078]
[1750788320681,0.81544,2451.4,2451.3,9.0178]
[1750788320873,0.81544,2451.4,2451.3,9.83326]
[1750788321070,0.81544,2451.4,2451.3,9.0178]
[1750788321675,0.81544,2451.4,2451.3,9.83326]
[1750788321978,0.81544,2451.4,2451.3,9.0178]
[1750788322184,0.81542,2451.5,2451.4,0.81541]
[1750788322388,0.81542,2451.5,2451.4,7.86741]
[1750788322587,0.81542,2451.5,2451.4,7.772]
[1750788322778,0.81542,2451.5,2451.4,8.58743]
[1750788323082,29.99727,2451.8,2451.5,0.81537]
[1750788323083,0.81539,2451.6,2451.5,0.81537]
[1750788323384,0.81536,2451.7,2451.6,0.81534]
[1750788323687,0.81536,2451.7,2451.6,10.7905]
[1750788324173,2.03792,2452.2,2451.6,10.7905]
[1750788324378,0.81533,2451.7,2451.6,19.82484]
[1750788324682,0.81531,2451.8,2451.7,0.81531]
[1750788324884,0.81531,2451.8,2451.7,7.19531]
[1750788325289,0.81527,2452.0,2451.9,0.81524]
[1750788325583,0.81527,2452.0,2451.9,5.83]
[1750788325784,0.81527,2452.0,2451.9,6.64526]
[1750788326087,0.81523,2452.1,2452.0,0.81519]
[1750788326282,0.8152,2452.1,2452.0,7.1452]
[1750788326483,0.81519,2452.2,2452.1,0.81517]
[1750788326688,0.81519,2452.2,2452.1,6.45]
[1750788327383,2.13099,2452.2,2452.1,6.45]
[1750788329684,0.81519,2452.2,2452.1,6.45]
[1750788330189,0.81516,2452.2,2452.1,7.26517]
[1750788330581,0.81516,2452.3,2452.2,0.81515]
[1750788330780,0.81511,2452.4,2452.3,0.81511]
[1750788330983,0.81511,2452.4,2452.3,7.09511]
[1750788331689,16.91752137,2452.7,2452.3,6.28]
[1750788331690,34.48095137,2452.7,2452.3,6.28]
[1750788331990,0.81507,2452.5,2452.4,0.8151]
[1750788332183,0.81507,2452.5,2452.4,7.2251]
[1750788332789,2.0373,2453.0,2452.4,6.41]
[1750788335493,0.8149,2453.0,2452.9,6.21]
[1750788336489,0.8149,2453.0,2452.9,7.02493]
[1750788336789,0.8149,2453.0,2452.9,6.21]
[1750788341890,0.81503,2452.6,2452.5,3.2078]
[1750788342189,0.81503,2452.6,2452.5,8.4578]
[1750788342388,6.51962787,2452.6,2452.5,8.4578]
[1750788342691,6.51962787,2452.6,2452.5,5.25]
[1750788346291,72.72401677,2452.6,2450.8,3.2078]
[1750788346490,5.70459787,2450.9,2450.8,6.6178]
[1750788346695,6.52019787,2450.9,2450.8,6.6178]
[1750788346896,6.52019787,2450.9,2450.8,3.41]
[1750788347795,42.12219787,2450.9,2450.8,3.41]
[1750788348185,42.12719787,2450.9,2450.8,3.41]
[1750788348384,42.11319787,2450.9,2450.8,3.41]
[1750788348896,42.12019787,2450.9,2450.8,3.41]
[1750788349086,6.52019787,2450.9,2450.8,3.41]
[1750788349294,42.10519787,2450.9,2450.8,3.41]
[1750788349695,42.51663477,2450.9,2450.8,3.41]
[1750788350395,43.52293501,2450.9,2450.8,3.41]
[1750788350594,1.2270369,2450.9,2450.8,3.41]
[1750788350794,3.2078,2451.4,2450.8,12.12561]
[1750788350988,3.2078,2451.4,2450.8,11.31]
[1750788351192,27.559,2451.3,2451.1,0.8155]
[1750788351390,27.56,2451.3,2451.2,0.81549]
[1750788351696,28.37546,2451.3,2451.2,6.34]
[1750788351997,28.37546,2451.3,2451.2,14.24]
[1750788353797,0.81546,2451.3,2451.2,14.24]
[1750788353996,28.32946,2451.3,2451.2,14.24]
[1750788354196,27.514,2451.3,2451.2,14.24]
[1750788354491,0.40713681,2451.5,2451.2,14.24]
[1750788354492,8.045,2451.5,2451.2,14.24]
[1750788354687,27.486,2451.3,2451.2,15.05548]
[1750788354888,28.30146,2451.3,2451.2,14.24]
[1750788355183,0.81546,2451.3,2451.2,14.24]
[1750788355792,28.29246,2451.4,2451.2,14.24]
[1750788356097,27.477,2451.4,2451.3,0.81546]
[1750788356298,0.81546,2451.3,2451.2,8.71548]
[1750788356600,0.81546,2451.3,2451.2,14.9855]
[1750788357288,0.81546,2451.3,2451.2,14.17]
[1750788357690,28.25046,2451.4,2451.3,0.81544]
[1750788357985,0.81543,2451.4,2451.3,7.6436]
[1750788358191,28.23943,2451.4,2451.3,16.35905]
[1750788358497,27.424,2451.5,2451.4,0.81541]
[1750788358699,27.424,2451.5,2451.4,8.05901]
[1750788358996,28.2394,2451.5,2451.4,15.1436]
[1750788359185,28.2394,2451.5,2451.4,15.95903]
[1750788359699,28.2394,2451.5,2451.4,15.1436]
[1750788359995,28.2394,2451.5,2451.4,15.95903]
[1750788360502,27.424,2451.5,2451.4,15.95903]
[1750788360795,28.2394,2451.5,2451.4,13.83]
[1750788361196,28.2394,2451.5,2450.4,3.2078]
[1750788361197,39.13489811,2451.5,2450.4,3.2078]
[1750788361500,0.81573,2450.5,2450.4,5.58]
[1750788361698,28.50673,2450.5,2450.4,5.58]
[1750788362797,27.691,2450.5,2450.4,6.39576]
[1750788362998,28.50673,2450.5,2450.4,5.58]
[1750788363695,4.07768,2451.1,2450.4,13.7878]
[1750788363696,3.2078,2451.1,2450.4,13.7878]
[1750788363900,0.81565,2450.8,2450.7,0.81565]
[1750788364102,0.81565,2450.8,2450.7,6.96565]
[1750788364300,0.81565,2450.8,2450.7,6.15]
[1750788365898,8.86165,2450.8,2450.7,6.15]
[1750788366204,12.06945,2450.8,2450.7,6.15]
[1750788367997,17.06945,2450.8,2450.7,6.15]
[1750788368202,12.06945,2450.8,2450.7,6.15]
[1750788369303,17.06945,2450.8,2450.7,6.15]
[1750788369600,12.06945,2450.8,2450.7,6.15]
[1750788369796,0.8158,2450.3,2450.2,3.2178]
[1750788370001,28.4038,2450.3,2450.2,9.1778]